bitfinex-derivatives/quotes_ETHF0:USTF0_20210702
["timestamp","ask_amount","ask_price","bid_price","bid_amount"]
[1625190295033,1.0,2094.5,2092.6,17.4258]
[1625190295184,0.05,2094.6,2092.6,17.4258]
[1625190295436,41.7868,2095.2,2092.6,17.4258]
[1625190295783,41.7868,2095.2,2092.9,48.7641]
[1625190295883,2.20527,2093.9,2093.6,2.20527]
[1625190295982,2.20527,2093.9,2093.6,4.93997]
[1625190298909,2.20527,2093.9,2093.6,2.20527]
[1625190299063,2.20527,2093.9,2092.6,14.5442]
[1625190299857,2.20527,2093.5,2093.4,2.20527]
[1625190300365,2.20527,2093.5,2093.2,2.20527]
[1625190301868,2.20527,2093.5,2093.3,2.20527]
[1625190303681,2.20527,2093.5,2092.6,14.5442]
[1625190303784,4.59487,2093.5,2092.6,14.5442]
[1625190303884,4.41054,2092.7,2092.6,14.5442]
[1625190303984,6.99424,2092.7,2092.6,14.5442]
[1625190304385,6.99424,2092.7,2092.4,2.20527]
[1625190304739,6.99424,2092.7,2092.2,2.20527]
[1625190304990,44.0608,2092.3,2092.2,2.20527]
[1625190305504,44.0608,2092.3,2090.4,1.0]
[1625190305606,1.0,2092.2,2090.3,30.3519]
[1625190305708,1.0,2092.2,2090.3,14.7422]
[1625190305709,3.6209,2092.2,2090.3,14.7422]
[1625190305806,13.0,2092.1,2089.5,0.9637]
[1625190305904,2.20527,2089.9,2089.8,2.20527]
[1625190306011,5.57387,2089.9,2089.6,0.15597503]
[1625190306255,5.57387,2089.9,2089.4,0.1560103]
[1625190306455,5.57387,2089.9,2089.3,4.766]
[1625190306605,5.57387,2089.9,2088.5,1.94535246]
[1625190306707,5.57387,2089.9,2088.6,45.892]
[1625190306806,5.57387,2089.9,2088.7,0.15580699]
[1625190307007,5.57387,2089.9,2088.3,0.15581506]
[1625190307309,5.57387,2089.9,2088.3,5.15581506]
[1625190307556,5.57387,2089.9,2088.4,51.47283616]
[1625190307710,15.5654,2091.7,2088.5,5.0]
[1625190307807,15.5654,2091.7,2088.5,5.15582225]
[1625190307911,2.20527,2090.7,2090.6,2.20527]
[1625190308059,2.20527,2090.7,2090.6,5.81827]
[1625190309068,43.15587,2090.7,2090.6,5.81827]
[1625190309169,43.15587,2090.7,2089.1,16.0267]
[1625190309267,46.19867,2090.7,2089.1,15.0267]
[1625190309925,2.20527,2089.4,2089.3,2.20527]
[1625190310178,44.74667,2089.4,2089.3,2.20527]
[1625190310326,2.20527,2089.4,2089.3,2.20527]
[1625190311077,7e-05,2089.4,2089.3,2.20527]
[1625190311327,1.0,2090.6,2089.3,2.20527]
[1625190311431,8.05,2092.5,2089.3,4.63407]
[1625190311534,1.0,2091.6,2089.3,9.63407]
[1625190311838,1.0,2091.6,2089.8,51.2134]
[1625190311938,2.20527,2091.2,2091.1,2.20527]
[1625190312039,2.20527,2091.2,2089.8,3.0636]
[1625190312192,5.95487,2091.2,2089.8,3.0636]
[1625190312540,43.9959,2091.1,2089.8,3.0636]
[1625190312942,43.9959,2091.1,2089.1,36.8483]
[1625190313145,43.9959,2091.1,2088.6,1.0]
[1625190313244,1.0,2091.0,2088.2,15.3838]
[1625190313495,1.0,2091.0,2088.3,0.15505243]
[1625190313595,1.0,2091.0,2088.3,3.42565243]
[1625190313693,1.0,2091.0,2088.4,0.1550467]
[1625190313897,2.20527,2090.4,2090.3,2.20527]
[1625190318127,2.20527,2090.7,2090.3,2.20527]
[1625190318229,2.20527,2090.7,2090.3,4.49227]
[1625190319229,1.0,2091.9,2090.3,4.49227]
[1625190319378,16.5872,2092.2,2090.3,4.49227]
[1625190319484,15.5872,2092.2,2090.3,4.49227]
[1625190319685,1.1,2092.1,2090.3,4.49227]
[1625190319785,15.5872,2092.2,2090.3,4.49227]
[1625190319937,2.20527,2091.5,2091.2,2.20527]
[1625190320036,2.20527,2091.5,2091.2,4.80777]
[1625190321052,2.20527,2091.7,2091.2,4.80777]
[1625190321613,16.405,2093.1,2091.2,4.80777]
[1625190321713,15.405,2093.1,2091.2,4.80777]
[1625190321963,2.20527,2092.3,2092.2,2.20527]
[1625190322115,2.20527,2092.3,2092.2,5.42357]
[1625190322215,4.766,2093.2,2092.2,5.42357]
[1625190322663,15.7334,2094.3,2092.2,5.42357]
[1625190322914,16.7334,2094.3,2092.2,5.42357]
[1625190324029,2.20527,2093.5,2093.4,2.20527]
[1625190324575,2.20527,2093.5,2093.4,1.07450492]
[1625190325988,4.41054,2093.5,2093.4,1.07450492]
[1625190329295,7.24224,2093.5,2093.4,1.07450492]
[1625190329901,7.24224,2093.5,2092.0,38.8067]
[1625190330004,2.20527,2093.1,2092.7,2.20527]
[1625190330415,2.20527,2093.1,2091.2,1.0]
[1625190330516,2.20527,2093.1,2090.3,1.95236077]
[1625190330962,6.97127,2093.1,2090.2,4.766]
[1625190331062,49.105,2092.5,2090.8,1.0]
[1625190331161,52.6062,2092.5,2090.2,4.766]
[1625190332014,2.20527,2091.5,2091.4,2.20527]
[1625190332114,5.50187,2091.5,2091.4,2.20527]
[1625190340221,2.20527,2091.5,2091.4,5.81877]
[1625190341020,2.20527,2091.5,2091.4,41.37247]
[1625190341522,2.20527,2091.5,2091.4,5.81877]
[1625190341974,1.0,2092.4,2091.4,5.81877]
[1625190342073,2.20527,2092.1,2091.8,2.20527]
[1625190343526,5.58787,2092.1,2091.8,2.20527]
[1625190345381,5.58787,2092.1,2091.4,2.20527]
[1625190345482,5.58787,2092.1,2090.4,4.766]
[1625190345632,5.58787,2092.1,2090.1,1.0]
[1625190346132,5.58787,2092.1,2090.8,2.20527]
[1625190346133,2.20527,2091.3,2090.8,2.20527]
[1625190346883,5.56847,2091.5,2090.8,2.20527]
[1625190348186,7.77374,2091.5,2091.1,2.20527]
[1625190348340,4.41054,2091.5,2091.1,2.20527]
[1625190349290,51.5101,2091.6,2091.1,2.20527]
[1625190350141,53.71537,2091.6,2091.5,2.20527]
[1625190351345,53.71537,2091.6,2091.1,2.20527]
[1625190351496,56.10917,2091.6,2091.1,2.20527]
[1625190351595,56.10917,2091.6,2090.0,16.7624]
[1625190351695,56.10917,2091.6,2090.0,15.7624]
[1625190352198,2.20527,2090.9,2090.8,2.20527]
[1625190352295,4.54857,2090.9,2090.8,2.20527]
[1625190352548,4.54857,2090.9,2090.6,2.20527]
[1625190353199,4.54857,2090.9,2090.0,15.7624]
[1625190353503,4.54857,2090.9,2089.2,15.5711]
[1625190353651,5.54857,2090.9,2089.2,15.5711]
[1625190353848,36.8578,2090.2,2089.2,15.5711]
[1625190353949,39.973,2090.2,2089.2,15.5711]
[1625190354202,2.20527,2090.1,2090.0,2.20527]
[1625190355608,1.0,2090.9,2090.0,2.20527]
[1625190355706,1.1,2091.5,2090.0,2.20527]
[1625190355855,51.5101,2091.6,2090.0,2.20527]
[1625190355856,52.5101,2091.6,2090.0,2.20527]
[1625190355955,51.5101,2091.6,2090.0,2.20527]
[1625190356156,56.5101,2091.6,2090.0,2.20527]
[1625190356256,37.36277,2090.4,2090.0,4.41054]
[1625190356764,2.20527,2090.4,2090.0,4.41054]
[1625190357480,46.238,2090.2,2090.0,4.41054]
[1625190358729,49.7723,2090.2,2090.0,4.41054]
[1625190360231,2.20527,2090.4,2090.0,4.41054]
[1625190360332,2.20527,2090.4,2090.0,6.83654]
[1625190361865,2.20527,2090.6,2090.0,6.83654]
[1625190362290,2.20527,2090.6,2090.5,4.41054]
[1625190362391,2.20527,2090.6,2090.5,6.99954]
[1625190362740,2.20527,2091.0,2090.5,6.99954]
[1625190362841,16.8408,2092.5,2090.5,6.99954]
[1625190362944,15.7408,2092.5,2090.5,6.99954]
[1625190363042,1.0,2092.4,2090.5,6.99954]
[1625190363144,1.0,2092.4,2090.6,50.4953]
[1625190364293,2.20527,2091.7,2091.6,2.20527]
[1625190366352,4.41054,2091.7,2091.6,2.20527]
[1625190370105,4.41054,2091.7,2090.3,1.0]
[1625190370208,4.41054,2091.7,2089.4,10.7174]
[1625190370305,2.20527,2091.2,2090.9,2.20527]
[1625190371914,2.20527,2091.7,2090.9,2.20527]
[1625190372009,2.20527,2091.7,2090.9,5.29497]
[1625190372363,1.0,2092.4,2091.6,2.20527]
[1625190372460,40.6832,2093.6,2091.6,4.85837]
[1625190373110,1.0,2093.4,2091.6,4.85837]
[1625190373261,1.0,2093.2,2091.6,4.85837]
[1625190373511,4.766,2093.2,2091.6,4.85837]
[1625190373613,1.82610869,2094.3,2091.6,9.85837]
[1625190373715,17.78430869,2094.3,2091.6,10.85837]
[1625190373917,15.9582,2094.3,2091.6,10.85837]
[1625190374062,15.9582,2094.3,2092.5,46.2065]
[1625190374164,15.9582,2094.3,2092.5,49.4322]
[1625190374269,16.9582,2094.3,2092.5,49.4322]
[1625190374362,2.20527,2093.4,2093.3,2.20527]
[1625190374462,2.20527,2093.4,2093.3,5.09887]
[1625190376328,4.41054,2093.4,2093.3,5.09887]
[1625190377656,4.41054,2093.4,2093.1,2.20527]
[1625190380363,4.41054,2093.4,2093.1,4.41054]
[1625190381164,2.20527,2093.4,2093.1,4.41054]
[1625190382824,2.20527,2093.4,2093.1,2.20527]
[1625190382927,4.84617,2093.4,2091.9,30.5134]
[1625190383027,4.84617,2093.4,2091.9,29.5134]
[1625190384330,2.20527,2093.4,2091.9,34.5134]
[1625190384480,2.20527,2093.4,2093.0,2.20527]
[1625190384585,2.20527,2093.4,2093.0,5.65907]
[1625190386182,2.20527,2093.4,2092.8,2.20527]
[1625190386331,5.45837,2093.4,2091.9,29.5134]
[1625190386432,2.20527,2092.8,2092.7,2.20527]
[1625190386533,5.14877,2092.8,2092.7,2.20527]
[1625190386983,5.14877,2092.8,2091.9,29.5134]
[1625190387233,51.3765,2092.6,2091.9,29.5134]
[1625190387338,51.3765,2092.6,2091.9,14.4728]
[1625190387683,5.14877,2092.8,2091.9,14.4728]
[1625190388083,2.20527,2092.8,2091.9,16.987]
[1625190388385,4.41054,2092.8,2092.4,2.20527]
[1625190389190,54.66484,2092.8,2092.4,2.20527]
[1625190389289,54.66484,2092.8,2091.9,14.4728]
[1625190389391,57.03894,2092.8,2091.9,14.4728]
[1625190390393,2.20527,2092.1,2091.9,14.4728]
[1625190391242,5.49707,2092.1,2091.6,2.20527]
[1625190392412,2.20527,2091.7,2091.6,2.20527]
[1625190392506,2.20527,2092.1,2091.6,2.20527]
[1625190392760,2.20527,2092.1,2091.6,4.86077]
[1625190394466,2.20527,2092.4,2092.0,2.20527]
[1625190396426,2.20527,2092.4,2092.3,2.20527]
[1625190397934,2.20527,2092.4,2092.3,4.88327]
[1625190399487,2.20527,2092.4,2092.3,2.20527]
[1625190400997,48.38697,2092.4,2092.3,2.20527]
[1625190401195,48.38697,2092.4,2092.0,2.20527]
[1625190401297,51.04997,2092.4,2092.0,2.20527]
[1625190401497,51.04997,2092.4,2090.8,52.8841]
[1625190401796,51.04997,2092.4,2090.8,14.8324]
[1625190402297,4.86827,2092.4,2090.8,14.8324]
[1625190402498,4.86827,2092.4,2092.0,2.20527]
[1625190404502,2.20527,2092.1,2092.0,2.20527]
[1625190404751,2.20527,2092.1,2091.8,2.20527]
[1625190405001,2.20527,2092.1,2091.3,39.5268]
[1625190406454,2.20527,2092.4,2092.0,2.20527]
[1625190408608,2.20527,2092.4,2092.3,2.20527]
[1625190408757,2.20527,2092.4,2092.0,2.20527]
[1625190410509,2.20527,2092.1,2091.6,2.20527]
[1625190410608,4.54567,2092.1,2091.6,2.20527]
[1625190411263,47.041,2091.8,2091.6,2.20527]
[1625190411723,47.041,2091.8,2090.8,14.8324]
[1625190411918,48.01,2091.8,2090.8,14.8324]
[1625190412020,47.041,2091.8,2090.8,14.8324]
[1625190412569,2.20527,2091.1,2090.8,17.03767]
[1625190412668,5.72667,2091.1,2090.8,17.03767]
[1625190412770,5.72667,2091.1,2090.8,2.20527]
[1625190414579,5.72667,2091.1,2091.0,2.20527]
[1625190414928,2.20527,2091.1,2091.0,2.20527]
[1625190415434,2.20527,2091.3,2091.0,2.20527]
[1625190416590,2.20527,2091.3,2091.2,2.20527]
[1625190417796,2.20527,2091.3,2091.0,2.20527]
[1625190417958,4.94177,2091.3,2090.0,1.96444729]
[1625190418347,50.8954,2090.5,2090.0,1.96444729]
[1625190418446,53.3809,2090.5,2089.6,6.73063553]
[1625190418551,2.20527,2090.1,2090.0,2.20527]
[1625190420596,4.41054,2090.1,2090.0,2.20527]
[1625190420899,1.0,2091.3,2090.0,2.20527]
[1625190420998,15.5014,2091.6,2090.0,4.55667]
[1625190421646,64.7218,2091.6,2090.0,4.55667]
[1625190421898,5.0,2091.5,2090.0,4.55667]
[1625190422014,8.4247,2091.5,2090.0,4.55667]
[1625190422172,8.4247,2091.5,2090.0,2.20527]
[1625190422622,2.20527,2090.1,2090.0,2.20527]
[1625190425844,5.06497,2090.1,2090.0,2.20527]
[1625190428399,2.20527,2090.1,2090.0,2.20527]
[1625190428499,2.20527,2090.3,2090.0,2.20527]
[1625190428601,2.20527,2090.6,2090.2,2.20527]
[1625190430603,2.20527,2090.6,2090.5,2.20527]
[1625190432407,2.20527,2090.6,2090.2,2.20527]
[1625190434661,2.20527,2090.6,2090.5,2.20527]
[1625190434812,2.20527,2090.6,2090.5,5.00197]
[1625190436624,2.20527,2090.6,2090.5,2.20527]
[1625190437189,2.20527,2090.6,2090.2,2.20527]
[1625190437298,5.26477,2090.6,2090.2,2.20527]
[1625190438693,2.20527,2090.3,2090.2,2.20527]
[1625190439644,48.04167,2090.3,2090.2,2.20527]
[1625190443858,2.20527,2090.3,2090.2,2.20527]
[1625190444809,48.95717,2090.3,2090.2,2.20527]
[1625190445159,51.40917,2090.3,2090.2,2.20527]
[1625190445962,4.65727,2090.3,2090.2,2.20527]
[1625190446714,4.65727,2090.3,2089.7,2.20527]
[1625190446862,51.3279,2090.0,2089.7,2.20527]
[1625190448163,51.3279,2090.0,2089.2,2.20527]
[1625190448770,4.41054,2089.3,2089.2,2.20527]
[1625190448916,6.94784,2089.3,2089.2,2.20527]
[1625190449268,6.94784,2089.3,2089.1,14.6344]
[1625190450022,4.41054,2089.3,2089.1,14.6344]
[1625190457499,4.41054,2089.3,2088.4,14.4388]
[1625190457750,4.41054,2089.3,2088.3,2.20527]
[1625190457849,4.41054,2089.3,2088.3,0.58727]
[1625190457948,35.8383,2088.4,2088.3,0.58727]
[1625190458049,35.8383,2088.4,2088.0,2.20527]
[1625190458050,39.1826,2088.4,2087.5,15.5741]
[1625190458250,39.1826,2088.4,2087.3,14.5427]
[1625190458400,39.1826,2088.4,2087.2,1.39781977]
[1625190458805,4.41054,2087.3,2087.0,2.20527]
[1625190459908,51.4639,2087.0,2086.2,1.39840841]
[1625190460011,51.4639,2087.0,2086.3,14.953]
[1625190460012,54.0577,2087.0,2086.3,14.953]
[1625190460914,4.41054,2086.4,2086.3,14.953]
[1625190463770,7.95534,2086.4,2086.3,14.953]
[1625190465233,4.41054,2086.4,2086.3,14.953]
[1625190465433,4.41054,2086.4,2085.9,2.20527]
[1625190466888,2.20527,2086.1,2085.9,2.20527]
[1625190468900,2.20527,2086.1,2086.0,2.20527]
[1625190470111,2.20527,2086.4,2086.0,2.20527]
[1625190470211,1.0,2087.5,2086.0,2.20527]
[1625190470212,0.97,2089.3,2086.0,2.20527]
[1625190470916,2.20527,2086.9,2086.8,2.20527]
[1625190471217,7e-05,2086.9,2086.8,2.20527]
[1625190472219,3.23737,2086.9,2086.8,2.20527]
[1625190476028,38.22497,2086.9,2086.8,2.20527]
[1625190476132,3.23737,2086.9,2086.6,2.20527]
[1625190476891,2.20527,2086.7,2086.6,2.20527]
[1625190480748,7e-05,2086.9,2086.6,2.20527]
[1625190480897,7e-05,2086.9,2086.8,2.20527]
[1625190481601,7e-05,2086.9,2086.6,2.20527]
[1625190482931,7e-05,2086.9,2086.8,2.20527]
[1625190486196,7e-05,2086.9,2086.5,2.9111]
[1625190486998,2.20527,2086.6,2086.5,2.9111]
[1625190487700,2.20527,2086.6,2086.3,2.20527]
[1625190488951,2.20527,2086.4,2086.3,2.20527]
[1625190489200,1.0,2087.4,2086.3,2.20527]
[1625190489304,15.9626,2088.7,2086.3,5.74567]
[1625190489402,1.0,2088.4,2086.3,5.74567]
[1625190490753,1.0,2088.4,2086.4,17.38]
[1625190490854,1.0,2088.4,2086.9,45.4914]
[1625190490955,15.9626,2088.7,2086.9,48.4521]
[1625190491054,2.20527,2087.8,2087.6,2.20527]
[1625190491204,2.20527,2087.8,2087.6,5.29497]
[1625190491457,2.20527,2087.8,2087.6,3.0897]
[1625190492911,2.20527,2087.8,2086.9,2.9607]
[1625190493008,2.20527,2087.8,2087.5,2.20527]
[1625190493509,2.20527,2087.8,2087.5,5.96627]
[1625190494658,1.0,2088.7,2087.5,5.96627]
[1625190494812,15.1769,2089.6,2087.5,5.96627]
[1625190495059,2.20527,2088.2,2088.0,2.20527]
[1625190495158,2.20527,2088.2,2088.0,5.37217]
[1625190497111,2.20527,2088.2,2088.1,2.20527]
[1625190501028,2.20527,2088.6,2088.1,2.20527]
[1625190501127,5.0,2090.7,2088.1,2.20527]
[1625190501280,14.912,2090.6,2088.1,3.20527]
[1625190501380,19.912,2090.6,2088.1,2.20527]
[1625190501882,14.912,2090.6,2088.1,2.20527]
[1625190502380,1.0,2090.5,2088.1,2.20527]
[1625190502631,0.992,2090.5,2088.1,2.20527]
[1625190502732,0.992,2090.5,2088.1,41.86817]
[1625190503084,2.20527,2089.8,2089.7,2.20527]
[1625190503183,2.20527,2089.8,2089.7,5.02617]
[1625190505199,2.20527,2089.8,2089.7,2.20527]
[1625190505288,2.20527,2089.8,2088.3,15.2181]
[1625190507043,2.20527,2089.8,2089.6,2.20527]
[1625190507546,2.20527,2089.8,2089.4,2.20527]
[1625190507655,5.12487,2089.8,2089.4,2.20527]
[1625190508353,5.12487,2089.8,2088.3,15.2181]
[1625190509055,2.20527,2089.1,2088.9,2.20527]
[1625190509957,42.0045,2090.2,2088.9,2.20527]
[1625190510108,36.0045,2090.2,2088.9,2.20527]
[1625190510211,5.0,2090.1,2088.9,2.20527]
[1625190510309,16.5104,2090.1,2088.9,2.20527]
[1625190510412,8.5104,2090.1,2088.9,2.20527]
[1625190510612,3.5104,2090.1,2088.9,2.20527]
[1625190511064,2.20527,2089.1,2088.9,2.20527]
[1625190513175,4.85657,2089.1,2088.9,2.20527]
[1625190513574,43.75067,2089.1,2088.9,2.20527]
[1625190513922,44.69517,2089.1,2088.9,2.20527]
[1625190514025,43.75067,2089.1,2088.9,2.20527]
[1625190514224,4.85657,2089.1,2088.9,2.20527]
[1625190514931,2.20527,2089.1,2088.9,2.20527]
[1625190515779,2.20527,2089.3,2088.9,2.20527]
[1625190515881,2.20527,2089.3,2088.9,5.71287]
[1625190517182,4.41054,2089.3,2089.2,2.20527]
[1625190522002,1.0,2090.5,2089.2,2.20527]
[1625190522097,19.912,2090.6,2089.2,2.20527]
[1625190522397,5.0,2090.6,2089.2,2.20527]
[1625190522995,5.9635,2090.7,2089.2,2.20527]
[1625190523143,2.20527,2089.7,2089.6,2.20527]
[1625190523246,3.15167,2089.7,2089.6,2.20527]
[1625190523545,2.20527,2089.7,2089.6,2.20527]
[1625190532717,2.20527,2089.8,2089.6,2.20527]
[1625190533220,1.0,2090.7,2089.6,2.20527]
[1625190533318,19.4639,2091.3,2090.2,2.20527]
[1625190533319,2.20527,2090.3,2090.2,2.20527]
[1625190535270,4.41054,2090.3,2090.2,2.20527]
[1625190543543,1.0,2091.1,2090.2,2.20527]
[1625190543693,14.4639,2091.3,2090.2,2.20527]
[1625190543944,1.0,2091.6,2090.2,2.20527]
[1625190544042,1.30486226,2091.8,2090.2,2.20527]
[1625190544242,9.30486226,2091.8,2090.2,2.20527]
[1625190544343,1.30452838,2091.7,2090.2,2.20527]
[1625190544699,1.30388617,2091.5,2090.2,2.20527]
[1625190544793,43.4205,2090.9,2090.2,2.20527]
[1625190544894,46.8823,2090.9,2090.2,2.20527]
[1625190545398,4.41054,2090.3,2090.2,2.20527]
[1625190545497,7.25684,2090.3,2090.2,2.20527]
[1625190547701,1.0,2091.4,2090.2,2.20527]
[1625190547804,1.30396688,2091.7,2090.2,2.20527]
[1625190548102,1.30397376,2091.6,2090.2,2.20527]
[1625190549360,2.20527,2090.8,2090.6,2.20527]
[1625190550209,2.20527,2090.8,2090.2,2.20527]
[1625190551372,2.20527,2090.8,2090.5,2.20527]
[1625190552576,2.20527,2090.8,2089.2,1.0]
[1625190552726,5.43847,2090.8,2088.9,15.1603]
[1625190552828,1.0,2090.7,2088.9,15.1603]
[1625190553377,2.20527,2090.1,2090.0,2.20527]
[1625190557387,2.20527,2090.5,2090.0,2.20527]
[1625190559290,3.16847,2090.5,2090.0,2.20527]
[1625190559390,2.20527,2090.5,2088.9,16.1603]
[1625190559490,2.20527,2090.1,2089.5,2.20527]
[1625190559692,7.20527,2090.1,2089.5,2.20527]
[1625190559790,7.20527,2090.1,2089.3,2.20527]
[1625190560041,7.20527,2090.1,2088.8,14.4151]
[1625190560144,35.6505,2089.4,2087.7,2.80044201]
[1625190560241,37.9283,2089.4,2087.7,2.80044201]
[1625190560343,37.9283,2089.4,2087.4,1.40061084]
[1625190560441,5.0,2089.3,2087.4,16.20351084]
[1625190560540,1.0,2089.2,2087.4,16.20351084]
[1625190560742,1.0,2089.2,2087.4,14.8029]
[1625190561494,2.20527,2088.0,2087.9,2.20527]
[1625190561599,5.70847,2088.0,2087.1,15.2943]
[1625190563446,2.20527,2087.5,2087.4,2.20527]
[1625190563596,5.83957,2087.5,2087.4,2.20527]
[1625190563950,3.6343,2087.5,2087.4,2.20527]
[1625190564802,1.0,2088.9,2087.4,2.20527]
[1625190564901,15.0539,2089.0,2087.4,4.80717]
[1625190565455,2.20527,2088.1,2087.4,4.80717]
[1625190566957,4.93447,2088.1,2087.4,2.20527]
[1625190567557,2.20527,2087.7,2087.4,2.20527]
[1625190568809,2.20527,2088.1,2087.4,2.20527]
[1625190569508,2.20527,2088.4,2088.0,4.41054]
[1625190571530,2.20527,2088.4,2088.3,2.20527]
[1625190571631,1.0,2089.2,2088.3,4.63777]
[1625190571784,35.851,2089.3,2088.3,4.63777]
[1625190573089,35.851,2089.3,2088.3,2.20527]
[1625190573540,2.20527,2088.8,2088.3,2.20527]
[1625190574148,5.68817,2088.8,2088.3,2.20527]
[1625190575501,2.20527,2088.5,2088.3,2.20527]
[1625190577151,2.20527,2088.5,2087.9,2.20527]
[1625190579055,5.68817,2088.8,2087.9,2.20527]
[1625190579555,5.68817,2088.8,2088.2,2.20527]
[1625190581663,5.68817,2088.8,2088.7,2.20527]
[1625190586085,2.20527,2088.8,2088.7,4.82057]
[1625190586487,1.0,2089.6,2088.7,4.82057]
[1625190586589,4.766,2089.8,2088.7,4.82057]
[1625190586787,1.31748217,2090.0,2088.7,4.82057]
[1625190586988,15.6728732,2090.2,2088.7,4.82057]
[1625190587307,14.3548,2090.2,2088.7,4.82057]
[1625190587754,2.20527,2089.8,2089.7,2.20527]
[1625190587955,1.31842394,2090.3,2089.7,2.20527]
[1625190588206,1.31931165,2090.6,2089.7,2.20527]
[1625190588605,1.31936298,2090.7,2089.7,2.20527]
[1625190589657,2.20527,2090.0,2089.7,2.20527]
[1625190593710,2.20527,2089.9,2089.7,2.20527]
[1625190595564,2.9461,2090.4,2089.7,2.20527]
[1625190595668,1.32137348,2090.8,2089.7,5.19557]
[1625190595764,2.20527,2090.5,2090.3,2.20527]
[1625190595865,2.20527,2090.5,2090.3,5.06147]
[1625190596874,2.20527,2090.5,2090.3,2.8562]
[1625190597375,2.20527,2090.5,2089.7,46.8231]
[1625190597727,2.20527,2090.5,2090.4,2.20527]
[1625190600035,2.20527,2090.5,2090.4,4.58157]
[1625190600136,2.20527,2090.8,2090.4,4.58157]
[1625190600739,2.20527,2090.8,2090.5,38.3782]
[1625190601789,2.20527,2090.8,2090.7,2.20527]
[1625190604353,2.20527,2090.8,2090.7,5.88467]
[1625190606106,2.20527,2091.1,2090.7,5.88467]
[1625190606608,16.0687,2091.9,2090.7,5.88467]
[1625190606708,15.0687,2091.9,2090.7,5.88467]
[1625190606810,1.32499053,2092.2,2090.7,5.88467]
[1625190606909,2.32499053,2092.2,2090.7,5.88467]
[1625190607007,1.32499053,2092.2,2090.7,5.88467]
[1625190607210,14.6949,2092.9,2090.7,5.88467]
[1625190607211,1.32578686,2092.5,2090.7,5.88467]
[1625190607310,1.32578686,2092.5,2090.7,2.20527]
[1625190607510,1.32514377,2092.2,2090.7,2.20527]
[1625190607661,43.1153,2091.9,2090.7,2.20527]
[1625190607761,2.20527,2091.6,2091.5,2.20527]
[1625190609623,3.3614,2092.2,2091.5,2.20527]
[1625190609721,1.32586167,2092.6,2091.5,2.20527]
[1625190609821,2.20527,2092.3,2092.2,2.20527]
[1625190614348,2.20527,2092.6,2092.2,2.20527]
[1625190615806,2.20527,2092.6,2092.5,2.20527]
[1625190616254,2.20527,2092.6,2092.5,1.07403114]
[1625190620266,2.20527,2092.6,2092.2,2.20527]
[1625190620365,4.61947,2092.6,2092.2,2.20527]
[1625190621869,2.4142,2092.6,2092.2,4.41054]
[1625190622018,1.0,2093.3,2092.2,4.41054]
[1625190622168,3.72900642,2093.5,2092.2,4.41054]
[1625190622728,2.4078,2093.5,2092.2,4.41054]
[1625190622820,1.32025164,2093.6,2092.2,4.41054]
[1625190623119,1.32003272,2093.5,2092.2,4.41054]
[1625190623223,5.06483272,2093.5,2092.2,4.41054]
[1625190623823,2.20527,2092.3,2092.2,4.41054]
[1625190626991,3.3061,2092.7,2092.2,4.41054]
[1625190627838,5.51137,2092.7,2092.2,4.41054]
[1625190629146,3.3061,2092.7,2092.2,4.41054]
[1625190629845,3.3061,2092.7,2092.5,2.20527]
[1625190631498,3.3061,2092.7,2092.5,1.07406877]
[1625190631699,3.3061,2092.7,2091.3,15.7855]
[1625190631798,3.20527,2092.9,2091.3,14.7855]
[1625190631898,2.20527,2091.8,2091.7,2.20527]
[1625190632000,5.84397,2091.8,2091.7,2.20527]
[1625190638932,5.84397,2091.8,2091.3,14.7855]
[1625190639030,5.84397,2091.8,2090.8,15.0266]
[1625190639983,2.20527,2091.0,2090.9,2.20527]
[1625190640082,5.27287,2091.0,2090.9,2.20527]
[1625190640332,5.27287,2091.0,2089.8,15.9985]
[1625190640433,5.27287,2091.0,2089.8,14.9985]
[1625190641534,10.27287,2091.0,2089.8,14.9985]
[1625190641633,15.03887,2091.0,2089.8,14.9985]
[1625190641992,4.41054,2089.9,2089.8,14.9985]
[1625190642083,7.75624,2089.9,2089.8,14.9985]
[1625190642236,7.75624,2089.9,2089.6,2.20527]
[1625190647759,7.75624,2089.9,2089.4,2.20527]
[1625190648012,2.20527,2089.5,2089.4,2.20527]
[1625190649717,2.20527,2089.9,2089.4,2.20527]
[1625190649824,2.20527,2089.9,2089.4,5.00427]
[1625190650029,2.20527,2089.9,2089.8,2.20527]
[1625190650626,2.20527,2089.9,2089.4,2.20527]
[1625190652031,2.20527,2089.5,2089.4,2.20527]
[1625190655032,2.20527,2089.9,2089.4,2.20527]
[1625190656049,2.20527,2089.9,2089.7,2.20527]
[1625190656137,2.20527,2089.9,2089.4,2.20527]
[1625190658038,4.41054,2089.9,2089.4,2.20527]
[1625190658751,7.25114,2089.9,2089.4,2.20527]
[1625190660651,4.41054,2089.9,2089.4,2.20527]
[1625190661457,1.0,2090.5,2089.4,2.20527]
[1625190661557,4.766,2091.0,2089.4,4.81177]
[1625190662108,2.20527,2090.2,2089.7,2.20527]
[1625190663160,5.64017,2090.2,2089.7,2.20527]
[1625190664219,5.64017,2090.2,2090.0,2.20527]
[1625190666178,2.20527,2090.1,2090.0,2.20527]
[1625190667480,4.92487,2090.1,2090.0,2.20527]
[1625190667682,4.92487,2090.1,2089.7,2.20527]